[Event "Early-Titled-Tuesday-Blitz-September-12-2023"]
[Site "Chess.com"]
[Date "2023.09.12"]
[Round "3"]
[White "parintele_chess"]
[Black "Chessdreamer2020"]
[Result "0-1"]
[WhiteElo "2242"]
[BlackElo "2542"]
[TimeControl "180+1"]
[EndTime "8:26:49 PDT"]
[Termination "Chessdreamer2020 won by checkmate"]

1. d4 {[%clk 0:03:00.9]} 1... d6 {[%clk 0:03:00]} 2. e4 {[%clk 0:02:59.9]} 2...
Nf6 {[%clk 0:02:59.7]} 3. Nc3 {[%clk 0:02:59.5]} 3... c6 {[%clk 0:03:00.2]} 4.
f4 {[%clk 0:02:58.6]} 4... d5 {[%clk 0:02:59.5]} 5. e5 {[%clk 0:02:58.4]} 5...
Ng8 {[%clk 0:03:00]} 6. Nf3 {[%clk 0:02:58.6]} 6... h5 {[%clk 0:03:00.5]} 7. Bd3
{[%clk 0:02:58.4]} 7... Nh6 {[%clk 0:03:00.6]} 8. O-O {[%clk 0:02:58.1]} 8... g6
{[%clk 0:03:00.7]} 9. h3 {[%clk 0:02:54.4]} 9... Bf5 {[%clk 0:03:00.9]} 10. Be3
{[%clk 0:02:51]} 10... e6 {[%clk 0:03:00.9]} 11. a3 {[%clk 0:02:49.7]} 11... Be7
{[%clk 0:03:01.1]} 12. b4 {[%clk 0:02:44.8]} 12... h4 {[%clk 0:03:00.9]} 13. Be2
{[%clk 0:02:31.7]} 13... Nd7 {[%clk 0:03:00.2]} 14. b5 {[%clk 0:02:30.2]} 14...
c5 {[%clk 0:02:59.7]} 15. dxc5 {[%clk 0:02:24.8]} 15... Nxc5 {[%clk 0:02:58.8]}
16. Nd4 {[%clk 0:02:24.9]} 16... Rc8 {[%clk 0:02:57.7]} 17. b6 {[%clk
0:02:04.4]} 17... Qxb6 {[%clk 0:02:54.7]} 18. Rb1 {[%clk 0:02:01.9]} 18... Qa5
{[%clk 0:02:52]} 19. Qd2 {[%clk 0:01:48.1]} 19... a6 {[%clk 0:02:41.5]} 20. Nb3
{[%clk 0:01:09.1]} 20... Nxb3 {[%clk 0:02:39.6]} 21. Rxb3 {[%clk 0:01:10]} 21...
b5 {[%clk 0:02:24.3]} 22. Bd4 {[%clk 0:00:54.9]} 22... O-O {[%clk 0:02:21.7]}
23. g4 {[%clk 0:00:34.5]} 23... hxg3 {[%clk 0:02:21.1]} 24. Qe1 {[%clk
0:00:34.7]} 24... Bc5 {[%clk 0:02:13.3]} 25. Bxc5 {[%clk 0:00:30]} 25... Rxc5
{[%clk 0:02:13.1]} 26. Qxg3 {[%clk 0:00:30.1]} 26... Bxc2 {[%clk 0:02:12]} 27.
h4 {[%clk 0:00:24.9]} 27... Bxb3 {[%clk 0:02:11.6]} 28. h5 {[%clk 0:00:24.9]}
28... Qxc3 {[%clk 0:02:11.4]} 29. Qg5 {[%clk 0:00:24]} 29... Qe3+ {[%clk
0:02:10.8]} 30. Kh1 {[%clk 0:00:23.1]} 30... Qxe2 {[%clk 0:01:08.7]} 31. hxg6
{[%clk 0:00:22.6]} 31... Qxf1+ {[%clk 0:01:08.1]} 32. Kh2 {[%clk 0:00:20.2]}
32... Rc2+ {[%clk 0:01:06.9]} 33. Kg3 {[%clk 0:00:19.7]} 33... Rg2+ {[%clk
0:01:06.2]} 34. Kh4 {[%clk 0:00:20.2]} 34... Qh1# {[%clk 0:01:04.9]} 0-1

[Event "Early-Titled-Tuesday-Blitz-September-12-2023"]
[Site "Chess.com"]
[Date "2023.09.12"]
[Round "3"]
[White "sokidze"]
[Black "mishanick"]
[Result "0-1"]
[WhiteElo "2778"]
[BlackElo "3086"]
[TimeControl "180+1"]
[EndTime "8:26:50 PDT"]
[Termination "mishanick won by resignation"]

1. d4 {[%clk 0:03:00.9]} 1... Nf6 {[%clk 0:02:59.1]} 2. c4 {[%clk 0:03:01]} 2...
e6 {[%clk 0:02:59.7]} 3. Nf3 {[%clk 0:03:01.6]} 3... d5 {[%clk 0:03:00.3]} 4. g3
{[%clk 0:03:02.3]} 4... Be7 {[%clk 0:02:57.7]} 5. Bg2 {[%clk 0:03:02.2]} 5...
O-O {[%clk 0:02:58.5]} 6. O-O {[%clk 0:03:01.5]} 6... dxc4 {[%clk 0:02:59]} 7.
Qc2 {[%clk 0:03:01.8]} 7... a6 {[%clk 0:02:59.3]} 8. a4 {[%clk 0:03:01.8]} 8...
Bd7 {[%clk 0:03:00]} 9. Qxc4 {[%clk 0:02:54.8]} 9... b5 {[%clk 0:03:00.3]} 10.
Qc2 {[%clk 0:02:20]} 10... Nc6 {[%clk 0:03:00.3]} 11. e4 {[%clk 0:02:19.7]}
11... bxa4 {[%clk 0:02:39.5]} 12. Nc3 {[%clk 0:02:18.3]} 12... Nb4 {[%clk
0:02:40.1]} 13. Qe2 {[%clk 0:02:18.4]} 13... c5 {[%clk 0:02:33.9]} 14. Rd1
{[%clk 0:02:16]} 14... cxd4 {[%clk 0:02:22.4]} 15. Nxd4 {[%clk 0:02:15.1]} 15...
Qb6 {[%clk 0:02:20.2]} 16. Nxa4 {[%clk 0:01:21.5]} 16... Bxa4 {[%clk 0:02:19.6]}
17. Rxa4 {[%clk 0:01:22.2]} 17... Rfd8 {[%clk 0:02:19.3]} 18. e5 {[%clk
0:01:19.6]} 18... Nfd5 {[%clk 0:02:19]} 19. Ra1 {[%clk 0:01:11.2]} 19... Rac8
{[%clk 0:02:15]} 20. Qg4 {[%clk 0:01:04.3]} 20... Nc2 {[%clk 0:02:08.2]} 21. Bh6
{[%clk 0:00:45.1]} 21... Bf8 {[%clk 0:02:08.2]} 22. Nxc2 {[%clk 0:00:45]} 22...
Rxc2 {[%clk 0:02:07.5]} 23. Rf1 {[%clk 0:00:42.6]} 23... Qxb2 {[%clk 0:01:50.3]}
24. Be4 {[%clk 0:00:24.1]} 24... Rxf2 {[%clk 0:01:17.9]} 25. Bg5 {[%clk
0:00:15.6]} 25... Rd7 {[%clk 0:01:02]} 26. Rxf2 {[%clk 0:00:10.6]} 26... Qxa1+
{[%clk 0:01:01.8]} 27. Kg2 {[%clk 0:00:11.1]} 27... Qxe5 {[%clk 0:01:02.2]} 28.
Qh4 {[%clk 0:00:08.9]} 28... h6 {[%clk 0:00:56.7]} 0-1

[Event "Early-Titled-Tuesday-Blitz-September-12-2023"]
[Site "Chess.com"]
[Date "2023.09.12"]
[Round "3"]
[White "Lion-Al-Messi"]
[Black "temus_galaktionov"]
[Result "1-0"]
[WhiteElo "2576"]
[BlackElo "2809"]
[TimeControl "180+1"]
[EndTime "8:26:50 PDT"]
[Termination "Lion-Al-Messi won by resignation"]

1. e4 {[%clk 0:03:00.9]} 1... c6 {[%clk 0:03:00.1]} 2. Nf3 {[%clk 0:03:01.2]}
2... g6 {[%clk 0:02:59.5]} 3. Nc3 {[%clk 0:03:00.8]} 3... Bg7 {[%clk 0:02:59.1]}
4. h3 {[%clk 0:03:01.2]} 4... d6 {[%clk 0:02:58]} 5. d4 {[%clk 0:03:01.4]} 5...
Nd7 {[%clk 0:02:58]} 6. Be3 {[%clk 0:03:01.4]} 6... e5 {[%clk 0:02:58.1]} 7. Qd2
{[%clk 0:03:01.6]} 7... Ngf6 {[%clk 0:02:57.9]} 8. a4 {[%clk 0:02:58.7]} 8...
O-O {[%clk 0:02:52.6]} 9. Bc4 {[%clk 0:02:58.5]} 9... Qe7 {[%clk 0:02:50.1]} 10.
O-O {[%clk 0:02:50.6]} 10... exd4 {[%clk 0:02:47.2]} 11. Bxd4 {[%clk 0:02:51.5]}
11... Nxe4 {[%clk 0:02:44.9]} 12. Nxe4 {[%clk 0:02:46.1]} 12... Qxe4 {[%clk
0:02:45.7]} 13. Rfe1 {[%clk 0:02:43.3]} 13... Qf5 {[%clk 0:02:40.3]} 14. Bxg7
{[%clk 0:02:38.1]} 14... Kxg7 {[%clk 0:02:41.1]} 15. Qxd6 {[%clk 0:02:38.1]}
15... Qf6 {[%clk 0:02:34.6]} 16. Qc7 {[%clk 0:02:30.4]} 16... Nc5 {[%clk
0:02:22.5]} 17. Rad1 {[%clk 0:02:28.9]} 17... Bf5 {[%clk 0:01:14.9]} 18. b4
{[%clk 0:02:21.5]} 18... Rac8 {[%clk 0:00:55.8]} 19. Qa5 {[%clk 0:02:10.2]}
19... Nxa4 {[%clk 0:00:55.3]} 20. Qxa4 {[%clk 0:02:01.2]} 20... b5 {[%clk
0:00:55.4]} 21. Qxa7 {[%clk 0:02:01.8]} 21... bxc4 {[%clk 0:00:54.9]} 22. Nd4
{[%clk 0:02:02]} 22... Rfd8 {[%clk 0:00:46.1]} 23. c3 {[%clk 0:02:01.7]} 23...
Kg8 {[%clk 0:00:40.6]} 24. Qc5 {[%clk 0:02:01.3]} 24... Bd3 {[%clk 0:00:38.1]}
25. Ra1 {[%clk 0:01:54.6]} 25... Rd5 {[%clk 0:00:35.2]} 26. Qb6 {[%clk
0:01:52.6]} 26... Rg5 {[%clk 0:00:29.9]} 27. Ra7 {[%clk 0:01:50.8]} 27... Qf4
{[%clk 0:00:20.3]} 28. Qb7 {[%clk 0:01:49.9]} 28... Rb8 {[%clk 0:00:16.9]} 29.
Qd7 {[%clk 0:01:42]} 29... Be4 {[%clk 0:00:15.9]} 30. Rxe4 {[%clk 0:01:39.6]}
30... Rxg2+ {[%clk 0:00:16]} 31. Kxg2 {[%clk 0:01:39.6]} 31... Qxe4+ {[%clk
0:00:16.5]} 32. Nf3 {[%clk 0:01:40.2]} 32... Rf8 {[%clk 0:00:14.5]} 33. Qd4
{[%clk 0:01:38.7]} 33... Qe6 {[%clk 0:00:14.9]} 34. Qe5 {[%clk 0:01:35.5]} 34...
Qc8 {[%clk 0:00:13.4]} 35. Ng5 {[%clk 0:01:33.4]} 35... f6 {[%clk 0:00:07]} 36.
Qe7 {[%clk 0:01:33.3]} 1-0

[Event "Early-Titled-Tuesday-Blitz-September-12-2023"]
[Site "Chess.com"]
[Date "2023.09.12"]
[Round "3"]
[White "the-gambler"]
[Black "Nekoo04"]
[Result "1-0"]
[WhiteElo "2552"]
[BlackElo "2284"]
[TimeControl "180+1"]
[EndTime "8:26:58 PDT"]
[Termination "the-gambler won by resignation"]

1. e4 {[%clk 0:03:00.9]} 1... c5 {[%clk 0:02:58.4]} 2. Nf3 {[%clk 0:02:59.9]}
2... d6 {[%clk 0:02:58.1]} 3. g3 {[%clk 0:02:59.3]} 3... Nc6 {[%clk 0:02:54.1]}
4. Nc3 {[%clk 0:02:59.3]} 4... Nf6 {[%clk 0:02:53.3]} 5. Bg2 {[%clk 0:02:59.4]}
5... g6 {[%clk 0:02:52.2]} 6. O-O {[%clk 0:02:59.9]} 6... Bg7 {[%clk 0:02:51.9]}
7. h3 {[%clk 0:03:00.3]} 7... O-O {[%clk 0:02:50.9]} 8. d3 {[%clk 0:02:59.7]}
8... e6 {[%clk 0:02:41.4]} 9. Re1 {[%clk 0:02:54.5]} 9... d5 {[%clk 0:02:40.9]}
10. exd5 {[%clk 0:02:54.8]} 10... exd5 {[%clk 0:02:38]} 11. Bf4 {[%clk
0:02:49.3]} 11... a6 {[%clk 0:02:14.4]} 12. a3 {[%clk 0:02:42.8]} 12... Be6
{[%clk 0:02:08.8]} 13. Qd2 {[%clk 0:02:38.6]} 13... d4 {[%clk 0:02:05.5]} 14.
Ne4 {[%clk 0:02:33]} 14... Nxe4 {[%clk 0:02:04.3]} 15. dxe4 {[%clk 0:02:30.8]}
15... Re8 {[%clk 0:01:33.9]} 16. Bh6 {[%clk 0:02:26.5]} 16... Bh8 {[%clk
0:01:33]} 17. Rad1 {[%clk 0:02:21.9]} 17... c4 {[%clk 0:01:28.9]} 18. Ng5 {[%clk
0:02:10.1]} 18... Qb6 {[%clk 0:01:28.3]} 19. Qc1 {[%clk 0:02:04.5]} 19... Rac8
{[%clk 0:01:08.5]} 20. Kh2 {[%clk 0:01:59.3]} 20... d3 {[%clk 0:00:48.3]} 21.
cxd3 {[%clk 0:01:41.3]} 21... Bxb2 {[%clk 0:00:46.6]} 22. Qf4 {[%clk 0:01:35.4]}
22... Be5 {[%clk 0:00:23.3]} 23. Qh4 {[%clk 0:01:33.8]} 23... c3 {[%clk
0:00:19.3]} 24. Nxh7 {[%clk 0:01:30.9]} 24... Qd8 {[%clk 0:00:13.9]} 25. Bg5
{[%clk 0:01:29.6]} 25... Qd6 {[%clk 0:00:05.7]} 26. Nf6+ {[%clk 0:01:29.6]}
26... Kf8 {[%clk 0:00:02.9]} 27. Qh8+ {[%clk 0:01:20.3]} 27... Ke7 {[%clk
0:00:02.6]} 28. Nxe8+ {[%clk 0:01:19.1]} 28... Kd7 {[%clk 0:00:03.2]} 29. Nf6+
{[%clk 0:01:16.2]} 29... Bxf6 {[%clk 0:00:03.5]} 30. Qxf6 {[%clk 0:01:15.3]}
30... c2 {[%clk 0:00:04.4]} 31. Rc1 {[%clk 0:01:14.5]} 31... Nd4 {[%clk
0:00:04.8]} 32. Bf4 {[%clk 0:01:10.5]} 32... Qxa3 {[%clk 0:00:03.8]} 33. Qxd4+
{[%clk 0:01:09.4]} 1-0

[Event "Early-Titled-Tuesday-Blitz-September-12-2023"]
[Site "Chess.com"]
[Date "2023.09.12"]
[Round "3"]
[White "inagreV"]
[Black "Just_Lucky_1"]
[Result "0-1"]
[WhiteElo "2255"]
[BlackElo "2543"]
[TimeControl "180+1"]
[EndTime "8:27:00 PDT"]
[Termination "Just_Lucky_1 won by checkmate"]

1. e4 {[%clk 0:03:00.9]} 1... c5 {[%clk 0:02:59.5]} 2. Nf3 {[%clk 0:03:00.8]}
2... d6 {[%clk 0:02:59.3]} 3. d4 {[%clk 0:03:00.6]} 3... cxd4 {[%clk 0:03:00.2]}
4. Nxd4 {[%clk 0:03:01.3]} 4... Nf6 {[%clk 0:03:01.1]} 5. Nc3 {[%clk 0:03:01.7]}
5... a6 {[%clk 0:03:02]} 6. Bc4 {[%clk 0:03:00.2]} 6... e6 {[%clk 0:03:01.8]} 7.
a4 {[%clk 0:03:00.3]} 7... Nbd7 {[%clk 0:02:49.6]} 8. O-O {[%clk 0:02:59.4]}
8... Nc5 {[%clk 0:02:46.6]} 9. f4 {[%clk 0:02:50.3]} 9... Ncxe4 {[%clk
0:02:35.3]} 10. Nxe4 {[%clk 0:02:51.2]} 10... Nxe4 {[%clk 0:02:35.1]} 11. f5
{[%clk 0:02:51.7]} 11... e5 {[%clk 0:02:03.8]} 12. Nf3 {[%clk 0:02:11]} 12...
Qc7 {[%clk 0:01:34.5]} 13. Bd5 {[%clk 0:01:43.3]} 13... Qc5+ {[%clk 0:01:33.1]}
14. Kh1 {[%clk 0:01:42.8]} 14... Nf2+ {[%clk 0:01:33.1]} 15. Rxf2 {[%clk
0:01:43]} 15... Qxf2 {[%clk 0:01:34]} 16. Bg5 {[%clk 0:01:08.1]} 16... Be7
{[%clk 0:01:33.9]} 17. Bxe7 {[%clk 0:00:54.7]} 17... Kxe7 {[%clk 0:01:34.8]} 18.
Qd3 {[%clk 0:00:53.6]} 18... Qb6 {[%clk 0:01:27.2]} 19. Rf1 {[%clk 0:00:48]}
19... f6 {[%clk 0:01:24.6]} 20. Nd2 {[%clk 0:00:40]} 20... Qd4 {[%clk 0:01:12]}
21. Qg3 {[%clk 0:00:20.6]} 21... Kf8 {[%clk 0:00:56.4]} 22. Be6 {[%clk
0:00:08.8]} 22... Qxd2 {[%clk 0:00:53.6]} 23. Qb3 {[%clk 0:00:05.9]} 23... Qd4
{[%clk 0:00:44.7]} 24. Bxc8 {[%clk 0:00:04.4]} 24... Rxc8 {[%clk 0:00:45.6]} 25.
Qxb7 {[%clk 0:00:04.4]} 25... Qc4 {[%clk 0:00:46.2]} 26. Qd7 {[%clk 0:00:02.1]}
26... Qxf1# {[%clk 0:00:46]} 0-1

[Event "Early-Titled-Tuesday-Blitz-September-12-2023"]
[Site "Chess.com"]
[Date "2023.09.12"]
[Round "3"]
[White "WiktoriaPOL"]
[Black "ozates"]
[Result "0-1"]
[WhiteElo "2304"]
[BlackElo "2548"]
[TimeControl "180+1"]
[EndTime "8:27:05 PDT"]
[Termination "ozates won by resignation"]

1. c4 {[%clk 0:02:43.1]} 1... c6 {[%clk 0:02:58.6]} 2. Nf3 {[%clk 0:02:42.9]}
2... d5 {[%clk 0:02:58.6]} 3. e3 {[%clk 0:02:43.2]} 3... Nf6 {[%clk 0:02:58.5]}
4. Nc3 {[%clk 0:02:43]} 4... Nbd7 {[%clk 0:02:53.7]} 5. b3 {[%clk 0:02:42.5]}
5... e5 {[%clk 0:02:53]} 6. Bb2 {[%clk 0:02:37.1]} 6... e4 {[%clk 0:02:52.8]} 7.
Nd4 {[%clk 0:02:36.2]} 7... Bd6 {[%clk 0:02:53.3]} 8. cxd5 {[%clk 0:02:33.9]}
8... cxd5 {[%clk 0:02:53.4]} 9. Ncb5 {[%clk 0:02:31.7]} 9... Be7 {[%clk
0:02:41.3]} 10. Nf5 {[%clk 0:02:18.8]} 10... O-O {[%clk 0:02:21.9]} 11. Nxe7+
{[%clk 0:02:18.1]} 11... Qxe7 {[%clk 0:02:22.8]} 12. Ba3 {[%clk 0:02:17.2]}
12... Nc5 {[%clk 0:02:22.6]} 13. Rc1 {[%clk 0:01:50.4]} 13... b6 {[%clk
0:02:20.6]} 14. d4 {[%clk 0:01:47.9]} 14... exd3 {[%clk 0:02:19]} 15. Bxd3
{[%clk 0:01:47]} 15... a6 {[%clk 0:02:08.4]} 16. Bxc5 {[%clk 0:01:41.5]} 16...
bxc5 {[%clk 0:02:08.7]} 17. Nc3 {[%clk 0:01:29.6]} 17... d4 {[%clk 0:02:08.8]}
18. Ne2 {[%clk 0:01:17.5]} 18... dxe3 {[%clk 0:02:04.8]} 19. O-O {[%clk
0:01:17.5]} 19... Ng4 {[%clk 0:02:03]} 20. f3 {[%clk 0:00:57.6]} 20... Nf2
{[%clk 0:01:52.7]} 21. Qc2 {[%clk 0:00:49.3]} 21... g6 {[%clk 0:01:49.5]} 22.
Be4 {[%clk 0:00:27.2]} 22... Bb7 {[%clk 0:01:21]} 23. Bxb7 {[%clk 0:00:25]}
23... Qxb7 {[%clk 0:01:21.9]} 24. Qc3 {[%clk 0:00:17.5]} 24... Rfe8 {[%clk
0:01:17.1]} 25. Rc2 {[%clk 0:00:16.4]} 25... Rad8 {[%clk 0:01:16.7]} 26. Qxc5
{[%clk 0:00:15.4]} 26... Rc8 {[%clk 0:01:01.9]} 27. Qxe3 {[%clk 0:00:05.3]}
27... Rxe3 {[%clk 0:01:00.4]} 28. Rxc8+ {[%clk 0:00:04.9]} 28... Qxc8 {[%clk
0:01:01.3]} 29. Kxf2 {[%clk 0:00:04.9]} 29... Rxe2+ {[%clk 0:00:55.2]} 30. Kxe2
{[%clk 0:00:03.8]} 30... Qc2+ {[%clk 0:00:56.1]} 31. Ke3 {[%clk 0:00:03.9]}
31... Qxa2 {[%clk 0:00:56.3]} 0-1

[Event "Early-Titled-Tuesday-Blitz-September-12-2023"]
[Site "Chess.com"]
[Date "2023.09.12"]
[Round "3"]
[White "Parhamov"]
[Black "Gareth-Bale11"]
[Result "1-0"]
[WhiteElo "3109"]
[BlackElo "2780"]
[TimeControl "180+1"]
[EndTime "8:27:13 PDT"]
[Termination "Parhamov won by checkmate"]

1. d4 {[%clk 0:03:00.9]} 1... Nf6 {[%clk 0:02:56.1]} 2. c4 {[%clk 0:02:56.3]}
2... e6 {[%clk 0:02:56.3]} 3. Nf3 {[%clk 0:02:55.6]} 3... d5 {[%clk 0:02:56]} 4.
Nc3 {[%clk 0:02:54]} 4... Bb4 {[%clk 0:02:56]} 5. Qa4+ {[%clk 0:02:49.1]} 5...
Nc6 {[%clk 0:02:53.9]} 6. e3 {[%clk 0:02:48.7]} 6... O-O {[%clk 0:02:52.6]} 7.
Bd2 {[%clk 0:02:48.7]} 7... dxc4 {[%clk 0:02:50]} 8. Bxc4 {[%clk 0:02:47.5]}
8... Bd6 {[%clk 0:02:50.6]} 9. Rd1 {[%clk 0:02:46.6]} 9... e5 {[%clk 0:02:47.4]}
10. dxe5 {[%clk 0:02:43.7]} 10... Nxe5 {[%clk 0:02:47.1]} 11. Be2 {[%clk
0:02:41]} 11... Nxf3+ {[%clk 0:02:35.2]} 12. Bxf3 {[%clk 0:02:39.7]} 12... c6
{[%clk 0:02:35.7]} 13. O-O {[%clk 0:02:37.6]} 13... Qc7 {[%clk 0:02:28.5]} 14.
h3 {[%clk 0:02:31]} 14... Bh2+ {[%clk 0:02:28.2]} 15. Kh1 {[%clk 0:02:30.3]}
15... Be5 {[%clk 0:02:29.1]} 16. Qc2 {[%clk 0:02:22.9]} 16... Be6 {[%clk
0:02:27.2]} 17. Be2 {[%clk 0:02:22.2]} 17... Qe7 {[%clk 0:02:06.9]} 18. e4
{[%clk 0:02:10.5]} 18... Rad8 {[%clk 0:01:53.3]} 19. f4 {[%clk 0:02:09.7]} 19...
Bd4 {[%clk 0:01:46]} 20. e5 {[%clk 0:02:04.4]} 20... Nd5 {[%clk 0:01:44.3]} 21.
Ne4 {[%clk 0:01:39]} 21... Bf5 {[%clk 0:01:37.8]} 22. Bd3 {[%clk 0:01:35.7]}
22... Kh8 {[%clk 0:00:58.3]} 23. Nd6 {[%clk 0:01:32]} 23... Bxd3 {[%clk
0:00:49.8]} 24. Qxd3 {[%clk 0:01:32.5]} 24... Bc5 {[%clk 0:00:50.4]} 25. Nf5
{[%clk 0:01:19.8]} 25... Qe6 {[%clk 0:00:50.5]} 26. Qc2 {[%clk 0:01:16.1]} 26...
Be7 {[%clk 0:00:39.4]} 27. Nd4 {[%clk 0:01:13.3]} 27... Qc8 {[%clk 0:00:27.8]}
28. f5 {[%clk 0:01:12.5]} 28... c5 {[%clk 0:00:28.3]} 29. Nf3 {[%clk 0:01:12.3]}
29... Rg8 {[%clk 0:00:18.1]} 30. Qe4 {[%clk 0:01:09]} 30... Qc6 {[%clk
0:00:15.6]} 31. Bg5 {[%clk 0:01:07.3]} 31... h6 {[%clk 0:00:13]} 32. Bh4 {[%clk
0:00:56.5]} 32... Bxh4 {[%clk 0:00:11]} 33. Qxh4 {[%clk 0:00:57.4]} 33... Ne3
{[%clk 0:00:08.5]} 34. Rxd8 {[%clk 0:00:56.8]} 34... Nxf1 {[%clk 0:00:08.3]} 35.
Rd6 {[%clk 0:00:55.2]} 35... Qc8 {[%clk 0:00:07.2]} 36. Rxh6+ {[%clk 0:00:55.1]}
36... gxh6 {[%clk 0:00:08.1]} 37. Qxh6# {[%clk 0:00:55.8]} 1-0

[Event "Early-Titled-Tuesday-Blitz-September-12-2023"]
[Site "Chess.com"]
[Date "2023.09.12"]
[Round "3"]
[White "SashaKuzhilniy"]
[Black "Chessbard1972"]
[Result "0-1"]
[WhiteElo "2636"]
[BlackElo "2491"]
[TimeControl "180+1"]
[EndTime "8:27:14 PDT"]
[Termination "Chessbard1972 won on time"]

1. b3 {[%clk 0:03:00.9]} 1... e5 {[%clk 0:02:58.4]} 2. Bb2 {[%clk 0:03:01.3]}
2... Bd6 {[%clk 0:02:57.9]} 3. c4 {[%clk 0:02:57.3]} 3... c6 {[%clk 0:02:56.5]}
4. Nf3 {[%clk 0:02:51.7]} 4... Qe7 {[%clk 0:02:56.3]} 5. e4 {[%clk 0:02:46.1]}
5... Nf6 {[%clk 0:02:55.6]} 6. Nc3 {[%clk 0:02:46.7]} 6... O-O {[%clk
0:02:52.2]} 7. Be2 {[%clk 0:02:44.6]} 7... Bc7 {[%clk 0:02:44.3]} 8. d4 {[%clk
0:02:41.6]} 8... d6 {[%clk 0:02:43.9]} 9. O-O {[%clk 0:02:40.8]} 9... a5 {[%clk
0:02:41.4]} 10. Re1 {[%clk 0:02:40.3]} 10... Bg4 {[%clk 0:02:38.6]} 11. h3
{[%clk 0:02:31.9]} 11... Bh5 {[%clk 0:02:37.1]} 12. Nh4 {[%clk 0:02:22.1]} 12...
Bg6 {[%clk 0:02:32.7]} 13. Nxg6 {[%clk 0:02:16]} 13... hxg6 {[%clk 0:02:32.1]}
14. Bf1 {[%clk 0:02:14.8]} 14... Nbd7 {[%clk 0:02:31.3]} 15. Qd2 {[%clk
0:02:12.8]} 15... Bb6 {[%clk 0:02:27.1]} 16. d5 {[%clk 0:01:49.4]} 16... cxd5
{[%clk 0:02:22.6]} 17. cxd5 {[%clk 0:01:40.9]} 17... Nh5 {[%clk 0:02:18.1]} 18.
Bb5 {[%clk 0:01:30.4]} 18... Nc5 {[%clk 0:02:12.1]} 19. Rac1 {[%clk 0:01:22.4]}
19... f5 {[%clk 0:02:10.6]} 20. exf5 {[%clk 0:00:51.2]} 20... gxf5 {[%clk
0:02:07.8]} 21. Nd1 {[%clk 0:00:31.6]} 21... Ne4 {[%clk 0:02:05]} 22. Qe2 {[%clk
0:00:23]} 22... Nf4 {[%clk 0:01:55.3]} 23. Qf3 {[%clk 0:00:20.6]} 23... Qg5
{[%clk 0:01:47.2]} 24. Ne3 {[%clk 0:00:18.4]} 24... Rac8 {[%clk 0:01:38.5]} 25.
Bd7 {[%clk 0:00:17]} 25... Rxc1 {[%clk 0:01:35.9]} 26. Rxc1 {[%clk 0:00:17.9]}
26... Nd3 {[%clk 0:01:29]} 27. Be6+ {[%clk 0:00:18]} 27... Kh8 {[%clk
0:01:23.7]} 28. Rc2 {[%clk 0:00:17.5]} 28... Nexf2 {[%clk 0:01:13.7]} 29. Nc4
{[%clk 0:00:04.8]} 29... e4 {[%clk 0:00:59.2]} 30. Qe2 {[%clk 0:00:03.5]} 30...
Nxh3+ {[%clk 0:00:50]} 31. Kf1 {[%clk 0:00:03.9]} 31... Qf4+ {[%clk 0:00:45.6]}
0-1

[Event "Early-Titled-Tuesday-Blitz-September-12-2023"]
[Site "Chess.com"]
[Date "2023.09.12"]
[Round "3"]
[White "Shield12"]
[Black "BlitzWizard04"]
[Result "1-0"]
[WhiteElo "2967"]
[BlackElo "2615"]
[TimeControl "180+1"]
[EndTime "8:27:16 PDT"]
[Termination "Shield12 won by resignation"]

1. e4 {[%clk 0:03:00.9]} 1... c5 {[%clk 0:03:00]} 2. Nf3 {[%clk 0:03:00.9]} 2...
e6 {[%clk 0:02:59.9]} 3. b3 {[%clk 0:03:00.9]} 3... Nf6 {[%clk 0:02:53.3]} 4. e5
{[%clk 0:03:00.4]} 4... Nd5 {[%clk 0:02:53.1]} 5. Bb2 {[%clk 0:03:01.3]} 5...
Nc6 {[%clk 0:02:51.6]} 6. g3 {[%clk 0:03:00.6]} 6... g6 {[%clk 0:02:49.2]} 7. c4
{[%clk 0:02:57.1]} 7... Nc7 {[%clk 0:02:45]} 8. d4 {[%clk 0:02:57.7]} 8... cxd4
{[%clk 0:02:44.9]} 9. Nxd4 {[%clk 0:02:58.5]} 9... Nxe5 {[%clk 0:02:25.9]} 10.
Nxe6 {[%clk 0:02:56.9]} 10... Nxe6 {[%clk 0:02:23.6]} 11. Bxe5 {[%clk
0:02:55.9]} 11... f6 {[%clk 0:02:23.1]} 12. Bb2 {[%clk 0:02:53.9]} 12... Qe7
{[%clk 0:02:21]} 13. Be2 {[%clk 0:02:53.1]} 13... Bg7 {[%clk 0:02:19.6]} 14. Nc3
{[%clk 0:02:52.5]} 14... O-O {[%clk 0:02:14]} 15. O-O {[%clk 0:02:53.1]} 15...
f5 {[%clk 0:02:02.5]} 16. f4 {[%clk 0:02:38.7]} 16... Nd4 {[%clk 0:01:54.2]} 17.
Bf3 {[%clk 0:02:35.8]} 17... Nxf3+ {[%clk 0:01:51.6]} 18. Qxf3 {[%clk
0:02:35.4]} 18... Qc5+ {[%clk 0:01:49.4]} 19. Kg2 {[%clk 0:02:34.1]} 19... Rb8
{[%clk 0:01:43.1]} 20. Na4 {[%clk 0:02:15.1]} 20... Qc7 {[%clk 0:01:32.7]} 21.
Bxg7 {[%clk 0:02:15.2]} 21... Kxg7 {[%clk 0:01:33.3]} 22. Nc3 {[%clk 0:02:12.2]}
22... b5 {[%clk 0:01:27.9]} 23. Nd5 {[%clk 0:02:07.2]} 23... Qc6 {[%clk
0:01:19.5]} 24. Qc3+ {[%clk 0:01:53.6]} 24... Kh6 {[%clk 0:01:14.7]} 25. Rae1
{[%clk 0:01:38.8]} 25... bxc4 {[%clk 0:01:08.2]} 26. bxc4 {[%clk 0:01:39.7]}
26... Ba6 {[%clk 0:00:58]} 27. Re7 {[%clk 0:01:36.9]} 27... Rg8 {[%clk
0:00:43.3]} 28. g4 {[%clk 0:01:24.7]} 28... fxg4 {[%clk 0:00:36.9]} 29. Qg3
{[%clk 0:01:03.1]} 29... Qxd5+ {[%clk 0:00:04.1]} 30. cxd5 {[%clk 0:01:01.6]}
30... Bxf1+ {[%clk 0:00:05]} 31. Kxf1 {[%clk 0:01:00.4]} 31... Rb1+ {[%clk
0:00:05.8]} 32. Ke2 {[%clk 0:00:59.6]} 32... Rb2+ {[%clk 0:00:05.5]} 33. Kd3
{[%clk 0:00:59.8]} 33... g5 {[%clk 0:00:05.7]} 34. fxg5+ {[%clk 0:00:56.4]}
34... Rxg5 {[%clk 0:00:06.6]} 35. Qh4+ {[%clk 0:00:55.1]} 1-0